[Event "1000GM Winter GM Norm-2 2024"]
[Site "Sunnyvale/"]
[Date "2024.01.05"]
[Round "6.4"]
[White "Amburgy, Ryan"]
[Black "Sheng, Joshua"]
[Result "0-1"]
[ECO "A43"]
[WhiteElo "2200"]
[BlackElo "2461"]
[Annotator "TA"]
[PlyCount "100"]
[EventDate "2023.12.14"]
[EventType "schev"]
[EventCountry "USA"]
[SourceTitle "playchess.com"]
[Source "ChessBase"]
[SourceQuality "1"]
[TimeControl "5400+30"]

{[%evp 9,100,-68,-75,-65,-62,-67,-60,-71,-58,-64,-74,-91,-94,-106,-90,-116,-115,-118,-117,-111,-85,-99,-88,-100,-91,-101,-85,-88,-80,-62,-68,-89,-83,-86,-71,-186,-104,-102,-115,-97,-106,-94,-77,-75,0,-68,-45,-31,0,-133,-143,-131,-125,-191,-205,-160,-168,-171,-127,-250,-245,-232,-250,-231,-245,-240,-242,-237,-230,-231,-170,-170,0,-233,-222,-284,-282,-377,-377,-384,-391,-387,-373,-363,-348,-387,-363,-468,-453,-569,-559,-584,-566]} 1. d4 {[%emt 0:00:02]} e6 {[%emt 0:00:07]} 2. Nf3 {[%emt 0:00:04]} c5 {[%emt 0:00:05]} 3. d5 {[%emt 0:00:09]} exd5 {[%emt 0:00:09]} 4. Qxd5 {[%emt 0:00:10]} Nf6 {[%emt 0:00:19]} 5. Qd3 {[%emt 0:06:15]} d5 {[%emt 0:02:42]} 6. Bg5 {[%emt 0:00:14] [#] A43: Schmid Benoni.} Nc6 $146 {[%emt 0:01:33]} ({Predecessor:} 6... Be7 7. Nc3 Be6 8. e3 Nc6 9. O-O-O c4 10. Qd2 Qa5 11. Nd4 Ne4 12. Nxc6 bxc6 13. Nxe4 Qxa2 {1-0 Smirnov,Y (1900)-Zauzoltsev,M (1235) Chigorin Memorial 30th 2023 (1)}) 7. e3 {[%emt 0:03:23]} Be7 {[%emt 0:04:32]} 8. Nc3 {[%emt 0:00:58] Black is slightly better.} O-O {[%emt 0:01:59]} 9. Be2 {[%emt 0:08:43]} Nb4 {[%emt 0:04:48]} 10. Qd2 {[%emt 0:00:07]} Bf5 {[%emt 0:06:24]} 11. O-O {[%emt 0:03:38] [#]} Ne4 $1 {[%emt 0:03:36]} (11... Nxc2 $6 12. Nh4 Be4 13. Rad1 $11) (11... Bxc2 12. Bxf6 (12. a3 Ne4 $16) 12... Bxf6 13. a3 $18) 12. Nxe4 {[%emt 0:01:01]} dxe4 {[%emt 0:00:21]} 13. Bxe7 {[%emt 0:02:48]} Qxe7 {[%emt 0:00:05]} 14. Ne1 {[%emt 0:00:06]} Qe5 {[%emt 0:00:20]} 15. Qc1 {[%emt 0:01:40]} Rad8 {[%emt 0:00:36]} 16. g3 {[%emt 0:00:15]} Qe6 {[%emt 0:12:46] Black is much more active.} 17. Ng2 {[%emt 0:01:07] White is weak on the light squares} Bg4 {[%emt 0:00:29]} (17... Nxa2 $6 18. Qe1 Nb4 19. Qc3 $11) 18. Nf4 {[%emt 0:04:55]} Qf5 {[%emt 0:00:03]} 19. Bxg4 {[%emt 0:01:16]} Qxg4 {[%emt 0:00:03]} 20. h3 {[%emt 0:00:10]} Qf3 {[%emt 0:01:34]} 21. a3 {[%emt 0:02:00]} Nc6 {[%emt 0:00:04] [#] Threatens to win with ...g5.} 22. Rd1 {[%emt 0:00:53]} (22. Qe1 $17 {is a better defense.}) 22... Ne5 {[%emt 0:01:34]} (22... g5 $19 23. Nd5 Ne5) 23. Rd5 $17 {[%emt 0:00:32]} Rxd5 {[%emt 0:01:48]} 24. Nxd5 {[%emt 0:00:02]} Rd8 {[%emt 0:02:08]} 25. c4 {[%emt 0:09:59]} Nd3 {[%emt 0:12:09]} 26. Qf1 {[%emt 0:00:42]} b5 {[%emt 0:05:16]} (26... Nxb2 $6 27. Rb1 Nd3 28. Rxb7 $11) (26... Kh8 $17) 27. b3 {[%emt 0:01:31]} ({White should play} 27. Ne7+ $11 Kh8 28. Nc6) 27... bxc4 {[%emt 0:00:13]} 28. bxc4 {[%emt 0:00:01]} Rb8 {[%emt 0:00:29][%cal Bd8b8,Bb8b2,Bb2c2][%mdl 32] aiming for ...Rb2.} 29. Qg2 {[%emt 0:01:02]} (29. Nf4 $11 {remains equal.}) 29... Qe2 {[%emt 0:01:01]} 30. g4 {[%emt 0:03:19]} Rb2 $36 {[%emt 0:07:50][%cal Re2f2][%mdl 2048] White is under strong pressure.} 31. Nc3 {[%emt 0:01:55]} (31. Rf1 $2 Ne1 32. Nf4 (32. Qxe4 $2 {loses.} Nf3+ 33. Kg2 Qxf1+ {[%mdl 64] Decoy} 34. Kxf1 Nd2+ 35. Ke1 Nxe4 $19) (32. Ne7+ $2 Kf8 $19) 32... Nf3+ 33. Kh1 Qxc4 $19) (31. g5 $17) 31... Qxf2+ $19 {[%emt 0:00:18]} 32. Qxf2 {[%emt 0:00:01]} Nxf2 {[%emt 0:00:05][%mdl 4096] Endgame KRN-KRN} 33. Kf1 {[%emt 0:00:07]} g6 {[%emt 0:03:34]} ({Weaker is} 33... Nxh3 34. Nxe4 Rc2 35. Rb1 $17) 34. Na4 {[%emt 0:00:42]} (34. Nd1 $17 Nxd1 35. Rxd1) 34... Rc2 {[%emt 0:00:46]} 35. Nxc5 {[%emt 0:00:25]} Nxh3 {[%emt 0:00:59]} 36. Nxe4 {[%emt 0:02:15]} Rxc4 {[%emt 0:00:05]} 37. Nf6+ {[%emt 0:00:03]} Kg7 {[%emt 0:00:03]} 38. Ne8+ {[%emt 0:00:03]} Kf8 {[%emt 0:00:03]} 39. Nf6 {[%emt 0:00:06]} Rc2 {[%emt 0:02:40]} 40. Ne4 {[%emt 0:00:48] Dodges Rf2+} Rc4 {[%emt 0:03:17]} (40... a5 $142 41. Rd1 Ra2 42. Rd8+ Kg7) 41. Nf6 $1 {[%emt 0:00:04]} Ke7 {[%emt 0:00:19]} 42. Nd5+ {[%emt 0:00:11]} Ke6 {[%emt 0:00:34]} 43. Rd1 {[%emt 0:00:04]} Rxg4 {[%emt 0:00:42] Strongly threatening ...Rg1+.} 44. Ke2 {[%emt 0:00:18]} Ra4 {[%emt 0:00:49]} 45. Nc7+ {[%emt 0:00:10]} Ke7 {[%emt 0:00:41]} 46. Nd5+ {[%emt 0:00:16]} Kf8 {[%emt 0:00:03]} ({Don't go for} 46... Ke6 $2 47. Nc7+ Ke5 48. Rd5+ Kf6 49. Rd3 $19) 47. Rd3 {[%emt 0:00:03]} h5 {[%emt 0:00:36][%cal Bh7h5,Bh5h4,Bh4h3][%mdl 32]} 48. Rc3 {[%emt 0:00:09]} Ng5 {[%emt 0:00:22] Black is clearly winning.} 49. Nb4 {[%emt 0:00:28]} h4 {[%emt 0:00:25]} 50. Kf1 {[%emt 0:00:03]} h3 {[%emt 0:00:41] Weighted Error Value: White=0.27 (precise) /Black=0.16 (very precise)} 0-1

[Event "1000GM Winter GM Norm-2 2024"]
[Site "Sunnyvale/"]
[Date "2024.01.05"]
[Round "6.5"]
[White "Guo, Andrew"]
[Black "Galyas, Miklos"]
[Result "1/2-1/2"]
[ECO "D11"]
[WhiteElo "2255"]
[BlackElo "2423"]
[Annotator "RC"]
[PlyCount "54"]
[EventDate "2023.12.14"]
[EventType "schev"]
[EventCountry "USA"]
[SourceTitle "playchess.com"]
[Source "ChessBase"]
[SourceQuality "1"]
[TimeControl "5400+30"]

1. d4 {[%emt 0:00:05]} d5 {[%emt 0:00:08]} 2. c4 {[%emt 0:00:07]} c6 {[%emt 0:00:04]} 3. Nf3 {[%emt 0:00:04]} Nf6 {[%emt 0:00:10]} 4. Nbd2 {[%emt 0:00:32]} Bf5 {[%emt 0:00:12]} 5. Nh4 {[%emt 0:00:05]} Be6 {[%emt 0:00:13]} 6. e3 {[%emt 0:01:03]} g6 {[%emt 0:00:12]} 7. Nhf3 {[%emt 0:01:29]} Bg7 {[%emt 0:00:17]} 8. cxd5 {[%emt 0:01:04]} cxd5 {[%emt 0:00:45]} 9. Be2 {[%emt 0:00:57]} Nc6 {[%emt 0:00:27]} 10. a3 {[%emt 0:00:54]} O-O {[%emt 0:01:34]} 11. b4 {[%emt 0:00:07]} Rc8 {[%emt 0:02:06]} 12. Bb2 {[%emt 0:00:11]} Bf5 {[%emt 0:04:59]} 13. Rc1 {[%emt 0:00:57]} Ne4 {[%emt 0:04:10]} 14. O-O {[%emt 0:03:26]} Qd6 {[%emt 0:05:45]} 15. Nb3 {[%emt 0:01:30]} Nb8 {[%emt 0:03:03]} 16. Nc5 {[%emt 0:02:54]} b6 {[%emt 0:01:18]} 17. Nxe4 {[%emt 0:00:21]} Bxe4 {[%emt 0:00:05]} 18. Qa4 {[%emt 0:00:33]} Rc7 {[%emt 0:10:58]} 19. Nd2 {[%emt 0:04:29]} Bf5 {[%emt 0:00:54]} 20. Rxc7 {[%emt 0:01:05]} Qxc7 {[%emt 0:00:02]} 21. Rc1 {[%emt 0:00:12]} Qb7 {[%emt 0:02:37]} 22. Bf3 {[%emt 0:01:00]} Bd7 {[%emt 1:01:31]} 23. Qb3 {[%emt 0:02:11]} e6 {[%emt 0:00:00]} 24. b5 {[%emt 0:11:16]} Rc8 {[%emt 0:00:00]} 25. Rxc8+ {[%emt 0:01:26]} Bxc8 {[%emt 0:00:00]} 26. h3 {[%emt 0:07:30]} Qc7 {[%emt 0:00:00]} 27. a4 {[%emt 0:03:32]} Nd7 {[%emt 0:00:00]} 1/2-1/2

[Event "1000GM Winter GM Norm-2 2024"]
[Site "Sunnyvale/"]
[Date "2024.01.06"]
[Round "6.6"]
[White "Shivakumar, Shawnak"]
[Black "Xu, Yi"]
[Result "1/2-1/2"]
[ECO "A45"]
[WhiteElo "2307"]
[BlackElo "2511"]
[Annotator "TA"]
[PlyCount "132"]
[EventDate "2023.12.14"]
[EventType "schev"]
[EventCountry "USA"]
[SourceTitle "playchess.com"]
[Source "ChessBase"]
[SourceQuality "1"]
[TimeControl "5400+30"]

{[%evp 9,132,-22,-19,-27,-27,-32,-18,-14,53,20,46,-77,92,97,96,55,37,-17,-8,-8,-35,-68,-79,-94,-89,-122,-63,-95,-95,-167,-168,-168,-162,-178,-145,-135,-132,-131,-145,-133,-137,-130,-131,-126,-116,-181,-184,-180,-129,-132,-129,-129,-132,-130,-131,-155,-120,-134,-119,-122,-91,-91,-98,-108,-83,-89,-80,-88,-52,-52,0,-46,-46,-46,-46,-46,-46,-46,-46,-46,-46,-46,-44,-75,-75,-81,-46,-46,-46,-46,-46,-71,-71,-71,-46,-46,-46,-108,-46,-46,-46,-46,-46,-46,0,-46,-46,-46,-46,-50,-45,-45,-11,-37,0,0,0,-8,-8,-8,0,0,0,0,0]} 1. d4 {[%emt 0:01:13]} Nf6 {[%emt 0:00:35][%cal Bg8f6,Bf6e4,Be4d2][%mdl 32]} 2. Bf4 {[%emt 0:01:00]} c5 {[%emt 0:02:12]} 3. d5 {[%emt 0:00:09]} b5 {[%emt 0:00:22]} 4. e4 {[%emt 0:00:04]} Nxe4 {[%emt 0:01:00]} 5. Qf3 {[%emt 0:00:10]} Qa5+ {[%emt 0:04:21]} 6. Nd2 $1 {[%emt 0:00:04] A45: Trompowsky Attack.} Nxd2 {[%emt 0:06:48]} 7. Bxd2 {[%emt 0:00:33]} Qb6 {[%emt 0:00:17]} 8. a4 {[%emt 0:00:11]} bxa4 {[%emt 0:02:20] [#]} ({Black should play} 8... Bb7 $11) 9. Nh3 $146 {[%emt 0:00:08]} (9. Rxa4 Qxb2 10. Bd3 d6 $17) ({Predecessor:} 9. Bc3 d6 10. Rxa4 Nd7 11. Rf4 Nf6 12. g4 h6 13. h4 Ba6 14. Bxa6 Qxa6 15. Ne2 {1-0 Munkhgal,G (2450)-Makarian,R (2548) Titled Tuesday intern op 05th Sep Early blitz 2023 (5)}) 9... Qf6 {[%emt 0:12:55]} 10. Qg3 {[%emt 0:29:21]} (10. Rxa4 Qxf3 11. gxf3 d6 $11) (10. Nf4 $1 $14 {stays ahead.}) 10... d6 $2 {[%emt 0:02:34] [#]} (10... Qxb2 $17 11. Qc3 Qxc3 12. Bxc3 Na6) 11. Bc3 $1 $16 {[%emt 0:00:57]} (11. Rxa4 Qxb2 12. Qa3 Qb1+ 13. Bc1 g6 $17) 11... Qg6 {[%emt 0:04:59]} 12. Qe3 {[%emt 0:01:55] Against Qe4. White is more active.} (12. Rxa4 Qxc2 13. Ra1 Qe4+ 14. Be2 Bxh3 15. Qxh3 Nd7 $11) 12... e5 {[%emt 0:02:53]} 13. f4 {[%emt 0:06:31]} (13. dxe6 $14 Qxe6 14. Nf4 {[%mdl 64] Pin} Qxe3+ 15. fxe3) 13... Be7 $11 {[%emt 0:04:29] Threatening ...0-0.} (13... Qxc2 $2 14. fxe5 Bf5 15. Ng5 $18) 14. fxe5 {[%emt 0:23:46]} O-O $36 {[%emt 0:02:53][%mdl 2048] Black has the initiative.} 15. O-O-O {[%emt 0:05:49]} Bf5 {[%emt 0:07:05]} 16. Bd3 {[%emt 0:00:37]} Bxd3 {[%emt 0:02:35]} 17. Rxd3 {[%emt 0:00:20]} Nd7 {[%emt 0:01:36]} (17... Qxg2 $2 18. Rg1 $18) ({Black should try} 17... c4 $17 18. Rdd1 dxe5 19. Bxe5 Re8) 18. e6 {[%emt 0:07:27]} fxe6 {[%emt 0:02:27]} (18... Qxg2 $2 19. Rg1 $18) 19. dxe6 {[%emt 0:04:42]} (19. Qxe6+ $17 Qxe6 20. dxe6) 19... Ne5 $1 $19 {[%emt 0:00:31]} (19... Qxg2 $2 20. Rg1 $18) 20. Bxe5 {[%emt 0:00:56]} dxe5 {[%emt 0:11:15]} 21. Qxe5 {[%emt 0:01:23]} Qxg2 {[%emt 0:00:16]} 22. Rhd1 {[%emt 0:05:55] Rg3 would be deadly.} Bf6 {[%emt 0:00:49]} 23. Qd5 {[%emt 0:00:27]} Qxd5 {[%emt 0:01:52]} 24. Rxd5 {[%emt 0:00:02]} Rab8 {[%emt 0:01:18]} 25. c3 {[%emt 0:00:19] [#]} a3 $1 {[%emt 0:01:58][%mdl 576] Deflection} 26. bxa3 {[%emt 0:00:12]} Bxc3 {[%emt 0:02:47]} 27. e7 {[%emt 0:01:44]} (27. Rd7 $17) 27... Rfe8 {[%emt 0:00:37]} 28. Rd8 {[%emt 0:02:24] Strongly threatening Rxb8.} Bf6 {[%emt 0:00:51]} (28... Bb2+ $19 29. Kc2 Bf6) 29. Rxb8 $17 {[%emt 0:00:23]} Rxb8 {[%emt 0:00:02][%mdl 4096] Endgame KRB-KRN} 30. Rd7 {[%emt 0:00:18]} Kf7 {[%emt 0:02:27]} 31. Rxa7 {[%emt 0:00:11]} c4 {[%emt 0:04:13][%cal Oc4c3]} ({Weaker is} 31... Bxe7 32. Ng5+ Kf6 33. Nxh7+ Ke6 34. h4 $15) 32. Rc7 {[%emt 0:02:30]} Rb3 {[%emt 0:03:33]} ({Stronger than} 32... Bxe7 33. a4 $15) 33. Nf2 {[%emt 0:00:46]} Rxa3 {[%emt 0:02:29]} 34. Rxc4 {[%emt 0:00:41]} Kxe7 {[%emt 0:02:45]} 35. Kd2 {[%emt 0:00:30]} Ke6 {[%emt 0:00:52]} 36. Ke2 {[%emt 0:00:15]} Be5 {[%emt 0:01:03]} 37. h4 {[%emt 0:02:18]} Bf6 {[%emt 0:03:55]} 38. Rb4 {[%emt 0:01:51]} Kf5 {[%emt 0:00:20]} 39. Rb5+ {[%emt 0:00:49]} Ke6 {[%emt 0:00:43]} (39... Kf4 $15 40. Rb4+ Kf5 41. Rb5+ Kf4 42. Rb4+ Ke5) 40. h5 {[%emt 0:00:28]} (40. Rb4 $1 $11) 40... h6 {[%emt 0:00:41]} 41. Nd3 $1 {[%emt 0:00:31]} Bg5 {[%emt 0:00:27]} 42. Rb7 {[%emt 0:01:01]} Kf6 {[%emt 0:00:29]} 43. Nf2 {[%emt 0:00:26]} Re3+ {[%emt 0:01:07]} 44. Kf1 $1 {[%emt 0:00:10]} Re7 {[%emt 0:00:18]} 45. Rb5 {[%emt 0:00:59]} Bf4 {[%emt 0:01:44]} 46. Ng4+ {[%emt 0:00:11]} Ke6 {[%emt 0:00:02]} 47. Kg2 {[%emt 0:00:13]} Bd6 {[%emt 0:00:29]} 48. Nf2 {[%emt 0:00:40]} Rf7 {[%emt 0:00:35] aiming for ...Rf5.} 49. Ne4 {[%emt 0:00:27]} Be7 {[%emt 0:01:09]} 50. Kh3 {[%emt 0:00:41]} Rf5 {[%emt 0:00:10]} 51. Rb6+ {[%emt 0:00:13]} Ke5 {[%emt 0:00:37]} (51... Kd7 $5 {[%cal Rf5h5]} 52. Rb7+ Ke6 $17) 52. Ng3 {[%emt 0:00:24] Threatens to win with Rb5+.} Rf4 {[%emt 0:00:44]} 53. Rg6 {[%emt 0:00:39] [#]} (53. Rb7 $15 Bf6 54. Ra7) 53... Bf6 {[%emt 0:00:34]} (53... Rh4+ $1 $17 54. Kg2 Bf6) 54. Rg4 $15 {[%emt 0:00:16]} Bg5 {[%emt 0:00:09]} 55. Ne2 {[%emt 0:00:32]} Rf2 {[%emt 0:00:29]} 56. Ng3 {[%emt 0:00:05]} Rf4 {[%emt 0:00:36]} 57. Ne2 {[%emt 0:00:01]} Rf3+ {[%emt 0:00:12]} 58. Ng3 {[%emt 0:00:09]} Re3 {[%emt 0:01:24]} 59. Kg2 {[%emt 0:00:07]} Kf6 {[%emt 0:00:20]} 60. Ra4 {[%emt 0:00:43]} Re6 {[%emt 0:00:33]} 61. Kf3 {[%emt 0:00:15]} g6 {[%emt 0:00:41]} 62. Ne4+ {[%emt 0:00:28] The position is equal.} Kg7 {[%emt 0:00:12]} 63. Nxg5 {[%emt 0:00:18]} hxg5 {[%emt 0:00:12]} 64. hxg6 {[%emt 0:00:13]} g4+ {[%emt 0:00:11]} 65. Rxg4 {[%emt 0:00:05]} Rxg6 {[%emt 0:00:03]} 66. Rxg6+ {[%emt 0:00:06]} Kxg6 {[%emt 0:00:04] And White is the lucky defender.   Weighted Error Value: White=0.13 (very precise) /Black=0.16 (very precise)} 1/2-1/2

[Event "1000GM Winter GM Norm-2 2024"]
[Site "Sunnyvale/"]
[Date "2024.01.05"]
[Round "6.7"]
[White "Lou, Yiping"]
[Black "Sathish, Pranav"]
[Result "1/2-1/2"]
[ECO "C67"]
[WhiteElo "2447"]
[BlackElo "2357"]
[Annotator "RC"]
[PlyCount "52"]
[EventDate "2023.12.14"]
[EventType "schev"]
[EventCountry "USA"]
[SourceTitle "playchess.com"]
[Source "ChessBase"]
[SourceQuality "1"]
[TimeControl "5400+30"]

1. e4 {[%emt 0:05:57]} e5 {[%emt 0:00:06]} 2. Nf3 {[%emt 1:25:33]} Nc6 {[%emt 0:00:29]} 3. Bb5 {[%emt 0:00:00]} Nf6 {[%emt 0:00:04]} 4. O-O {[%emt 0:00:00]} Nxe4 {[%emt 0:00:24]} 5. Re1 {[%emt 0:00:00]} Nd6 {[%emt 1:31:57]} 6. Nxe5 {[%emt 0:00:00]} Be7 {[%emt 0:00:00]} 7. Bf1 {[%emt 0:00:00]} Nxe5 {[%emt 0:00:00]} 8. Rxe5 {[%emt 0:00:00]} O-O {[%emt 0:00:00]} 9. d4 {[%emt 0:00:00]} Bf6 {[%emt 0:00:00]} 10. Re1 {[%emt 0:00:00]} Re8 {[%emt 0:00:00]} 11. Nc3 {[%emt 0:00:00]} Rxe1 {[%emt 0:00:00]} 12. Qxe1 {[%emt 0:00:00]} Bxd4 {[%emt 0:00:00]} 13. Bf4 {[%emt 0:00:00]} Ne8 {[%emt 0:00:00]} 14. Nd5 {[%emt 0:00:00]} c6 {[%emt 0:00:00]} 15. Ne7+ {[%emt 0:00:00]} Kf8 {[%emt 0:00:00]} 16. Nxc8 {[%emt 0:00:00]} Qf6 {[%emt 0:00:00]} 17. Qe4 {[%emt 0:00:00]} Rxc8 {[%emt 0:00:00]} 18. Rd1 {[%emt 0:00:00]} Bb6 {[%emt 0:00:00]} 19. Bg3 {[%emt 0:00:00]} g6 {[%emt 0:00:00]} 20. Rxd7 {[%emt 0:00:00]} Rc7 {[%emt 0:00:00]} 21. Rxc7 {[%emt 0:00:00]} Nxc7 {[%emt 0:00:00]} 22. a4 {[%emt 0:00:00]} Qxb2 {[%emt 0:00:00]} 23. Be5 {[%emt 0:00:00]} Qa3 {[%emt 0:00:00]} 24. Qf4 {[%emt 0:00:00]} Ne6 {[%emt 0:09:30]} 25. Bd6+ {[%emt 0:00:00]} Kg8 {[%emt 0:00:00]} 26. Qxf7+ {[%emt 0:00:00]} Kxf7 {[%emt 0:00:00]} 1/2-1/2

[Event "1000GM Winter GM Norm-2 2024"]
[Site "Sunnyvale/"]
[Date "2024.01.05"]
[Round "6.8"]
[White "Delgado Ramirez, Neuris"]
[Black "Liu, Eric"]
[Result "1/2-1/2"]
[ECO "C54"]
[WhiteElo "2517"]
[BlackElo "2332"]
[Annotator "TA"]
[PlyCount "107"]
[EventDate "2023.12.14"]
[EventType "schev"]
[EventCountry "USA"]
[SourceTitle "playchess.com"]
[Source "ChessBase"]
[SourceQuality "1"]
[TimeControl "5400+30"]

{[%evp 12,107,0,8,27,25,28,0,0,0,0,0,3,0,0,7,12,12,39,15,23,0,14,-17,-17,-17,-25,-39,0,-14,37,-39,-42,-31,-35,-24,-36,-58,-60,-44,-29,-66,-50,-53,-51,-57,-57,-57,-57,-57,-57,-57,-55,-66,-8,-8,-8,-8,-8,-15,-5,-15,-8,-8,0,0,0,0,0,0,0,0,0,-51,0,0,0,0,0,0,0,0,0,0,0,0,0,0,0,0,0,0,0,0,0,0,0,0]} 1. e4 {[%emt 0:05:09]} e5 {[%emt 0:00:05]} 2. Nf3 {[%emt 0:00:13]} Nc6 {[%emt 0:00:09]} 3. Bc4 {[%emt 0:00:20]} Nf6 {[%emt 0:00:12]} 4. d3 {[%emt 0:00:05]} Bc5 {[%emt 0:00:11]} 5. Bg5 {[%emt 0:00:15]} h6 {[%emt 0:00:12]} 6. Bh4 {[%emt 0:00:05]} d6 {[%emt 0:00:09]} 7. c3 {[%emt 0:00:16] now supersedes 7.h3.} a5 {[%emt 0:00:20] C54: Giuoco Piano: 4 c3 Nf6, main lines with 5 d4 and 5 d3.} 8. Nbd2 {[%emt 0:01:29][%cal Bb1d2,Bd2f1,Bf1e3][%mdl 32]} Ba7 {[%emt 0:00:18] [#]} 9. Nf1 $146 {[%emt 0:02:33]} ({Predecessor:} 9. a4 O-O 10. h3 g5 11. Nxg5 hxg5 12. Bxg5 Kg7 13. Qf3 Be6 14. Rf1 Rh8 15. O-O-O {1-0 Caruana,F (2795)-Firouzja,A (2777) Saint Louis Blitz 2023 (6)}) 9... g5 {[%emt 0:16:03]} 10. Bg3 {[%emt 0:00:03]} Be6 {[%emt 0:00:07]} 11. Bb5 {[%emt 0:02:50]} O-O {[%emt 0:02:05]} 12. Ne3 {[%emt 0:06:52]} Ne7 {[%emt 0:01:36]} 13. Ba4 {[%emt 0:00:27]} Ng6 {[%emt 0:19:25]} 14. Bc2 {[%emt 0:00:50]} Nh5 {[%emt 0:10:16]} 15. Nf5 {[%emt 0:10:28]} Bxf5 {[%emt 0:02:48]} 16. exf5 {[%emt 0:00:04]} Ngf4 {[%emt 0:00:06]} 17. O-O {[%emt 0:03:38]} Qf6 {[%emt 0:03:24]} 18. Bxf4 {[%emt 0:07:18]} Nxf4 {[%emt 0:15:06]} 19. g3 {[%emt 0:01:39]} Nd5 {[%emt 0:00:06]} 20. Bb3 {[%emt 0:03:20] White is weak on the dark squares} c6 {[%emt 0:02:05]} (20... Ne7 $11) 21. d4 {[%emt 0:09:14]} (21. Bxd5 $14 cxd5 22. Qb3) 21... exd4 $15 {[%emt 0:10:32]} 22. Bxd5 {[%emt 0:00:26]} cxd5 {[%emt 0:00:01]} 23. Nxd4 {[%emt 0:00:18]} Bxd4 {[%emt 0:00:04]} 24. Qxd4 {[%emt 0:00:20]} Qxd4 {[%emt 0:00:05]} 25. cxd4 {[%emt 0:00:06][%mdl 4096] Endgame KRR-KRR} Rac8 {[%emt 0:03:20]} 26. Rfc1 {[%emt 0:00:43]} Kg7 {[%emt 0:02:12]} 27. Rc3 {[%emt 0:00:39]} Rxc3 {[%emt 0:05:40]} 28. bxc3 {[%emt 0:00:03] KR-KR} Rc8 {[%emt 0:00:06]} 29. Rb1 {[%emt 0:00:07]} Rxc3 {[%emt 0:00:05]} 30. Rxb7 {[%emt 0:00:48]} Rc4 {[%emt 0:04:27]} 31. Rb6 {[%emt 0:00:29]} Rxd4 {[%emt 0:00:13]} 32. Rxd6 {[%emt 0:00:07]} Ra4 {[%emt 0:01:26]} (32... h5 $15) 33. Rxd5 $11 {[%emt 0:02:42]} Rxa2 {[%emt 0:00:03]} 34. Rd6 {[%emt 0:00:28]} a4 {[%emt 0:02:58]} 35. Ra6 {[%emt 0:00:29]} a3 {[%emt 0:01:15]} 36. Kg2 {[%emt 0:00:13]} h5 {[%emt 0:00:06]} 37. h3 {[%emt 0:00:20]} g4 {[%emt 0:00:58]} 38. hxg4 {[%emt 0:01:25]} hxg4 {[%emt 0:00:02]} 39. Kg1 {[%emt 0:00:38]} Ra1+ {[%emt 0:00:57]} 40. Kg2 {[%emt 0:00:03]} a2 {[%emt 0:00:31]} 41. Ra5 {[%emt 0:01:26]} Kf6 {[%emt 0:00:10]} 42. Ra7 {[%emt 0:00:07]} ({White should play} 42. Kh2 $11 Ke7 43. Ra7+ Kd6 44. Ra6+ Kc5 45. f6) 42... Ke5 {[%emt 0:00:48]} ({Black should try} 42... Kxf5 $15 43. Rxf7+ Kg5) 43. Ra5+ $1 {[%emt 0:00:11] The position is equal.} Kd6 {[%emt 0:00:27]} 44. Ra6+ {[%emt 0:00:15]} Kc5 {[%emt 0:00:32][%cal Of7f6]} 45. f6 $1 {[%emt 0:00:37]} Kb5 {[%emt 0:00:15]} 46. Ra8 {[%emt 0:00:16]} Kc4 {[%emt 0:00:05]} 47. Ra7 {[%emt 0:00:20]} Kb3 {[%emt 0:00:08]} 48. Rb7+ $1 {[%emt 0:00:05]} Kc3 {[%emt 0:00:07]} 49. Rc7+ $1 {[%emt 0:00:11]} Kd4 {[%emt 0:00:05] [#] ( -> ...Rb1)} 50. Ra7 $1 {[%emt 0:00:07]} Ke5 {[%emt 0:00:13]} 51. Ra6 {[%emt 0:00:08]} Ke4 {[%emt 0:00:28]} 52. Ra4+ {[%emt 0:00:29]} Kf5 {[%emt 0:00:16]} 53. Ra6 {[%emt 0:00:05]} Ke5 {[%emt 0:00:16]} 54. Kh2 $1 {[%emt 0:00:14] Weighted Error Value: White=0.08 (flawless) /Black=0.09 (flawless)} 1/2-1/2